bitfinex/quotes_SOLUSD_20250919
["timestamp","ask_amount","ask_price","bid_price","bid_amount"]
[1758297457767,50.05617583,237.99,237.96,13.59559401]
[1758297458067,31.2,237.96,237.95,14.27559401]
[1758297458362,34.02931635,237.96,237.95,46.57559401]
[1758297458668,2.82931635,237.96,237.95,46.57559401]
[1758297458862,15.45531328,237.96,237.95,46.57559401]
[1758297459247,15.45531328,237.96,237.95,14.27559401]
[1758297459447,15.45531328,237.96,237.95,46.57559401]
[1758297459659,2.82931635,237.96,237.95,46.57559401]
[1758297469074,2.82931635,237.96,237.95,14.27559401]
[1758297469561,2.82931635,237.96,237.95,46.57559401]
[1758297470768,2.82931635,237.96,237.95,14.27559401]
[1758297470949,2.82931635,237.96,237.95,46.57559401]
[1758297480283,2.82931635,237.96,237.95,14.27559401]
[1758297480483,2.82931635,237.96,237.95,46.57559401]
[1758297482979,2.82931635,237.96,237.95,48.0529882]
[1758297488296,2.82931635,237.96,237.95,46.57559401]
[1758297489595,2.82931635,237.96,237.95,48.0529882]
[1758297490597,2.82931635,237.96,237.95,82.0929882]
[1758297491181,2.82931635,238.0,237.96,13.59559401]
[1758297491377,12.62334056,238.02,238.0,13.59559401]
[1758297491587,12.62334056,238.02,238.01,34.46739419]
[1758297491913,40.86693119,238.04,238.02,13.59559401]
[1758297492194,28.24465287,238.04,238.03,45.87559401]
[1758297492403,28.24465287,238.04,238.03,46.58559401]
[1758297493085,28.24465287,238.04,238.03,45.87559401]
[1758297493876,28.24465287,238.04,238.03,13.59559401]
[1758297494076,28.24465287,238.04,238.03,45.87559401]
[1758297494903,40.86693119,238.04,238.03,45.87559401]
[1758297497015,40.86693119,238.04,238.03,46.58559401]
[1758297497590,40.86693119,238.04,238.03,45.87559401]
[1758297499025,40.86693119,238.04,238.03,32.28]
[1758297499191,40.86693119,238.04,238.03,45.87559401]
[1758297502000,12.62227832,238.04,238.03,45.87559401]
[1758297502611,12.62227832,238.04,238.03,32.28]
[1758297502819,13.30227832,238.04,238.03,45.87559401]
[1758297503111,31.2,238.01,237.95,34.04]
[1758297503283,31.2,238.01,237.97,13.59559401]
[1758297503483,31.2,238.01,237.99,13.59559401]
[1758297503683,31.2,238.01,238.0,32.28]
[1758297504098,0.68,238.02,238.0,32.28]
[1758297504306,12.62440297,238.01,238.0,32.28]
[1758297504498,12.62440297,238.01,237.97,0.71]
[1758297504698,13.30440297,238.01,237.99,13.59559401]
[1758297505102,0.68,238.0,237.96,13.59559401]
[1758297505301,13.30440297,238.0,237.98,13.59559401]
[1758297505610,12.62440297,238.0,237.99,45.87559401]
[1758297506716,0.7,238.02,237.99,45.87559401]
[1758297507100,12.62440297,238.01,237.99,45.87559401]
[1758297507301,0.7,238.0,237.99,13.59559401]
[1758297507501,0.7,238.0,237.99,45.87559401]
[1758297508803,43.82440297,238.01,237.99,45.87559401]
[1758297509316,44.52440297,238.01,237.99,45.87559401]
[1758297510390,13.32440297,238.01,238.0,32.28]
[1758297510916,13.32440297,238.01,237.92,34.7]
[1758297511214,31.2,237.98,237.93,45.87559401]
[1758297511421,31.2,237.98,237.95,13.59559401]
[1758297511586,0.7,238.0,237.96,32.28]
[1758297511790,0.7,237.99,237.96,32.28]
[1758297512302,12.62652834,237.97,237.96,32.28]
[1758297514298,12.62652834,237.97,237.96,32.94]
[1758297514611,12.62652834,237.97,237.96,32.28]
[1758297516519,12.62652834,237.97,237.96,32.94]
[1758297517318,12.62652834,237.97,237.96,32.28]
[1758297520121,12.62652834,237.97,237.95,13.59559401]
[1758297520318,12.62652834,237.97,237.96,32.28]
[1758297520620,0.7,237.99,237.96,32.28]
[1758297520832,12.62652834,237.97,237.96,32.28]
[1758297523501,31.2,237.95,237.94,13.59559401]
[1758297523831,31.2,237.95,237.94,45.87559401]
[1758297524241,43.82705979,237.95,237.94,45.87559401]
[1758297525305,43.82705979,237.95,237.94,32.28]
[1758297525507,44.52705979,237.95,237.94,32.28]
[1758297526107,47.35395528,237.95,237.94,32.28]
[1758297526522,46.65395528,237.95,237.94,32.28]
[1758297527826,46.65395528,237.95,237.91,0.66]
[1758297528122,3.52689549,237.94,237.92,32.28]
[1758297528332,3.52689549,237.94,237.93,32.28]
[1758297528628,16.15608154,237.94,237.93,32.28]
[1758297528802,31.2,237.91,237.87,14.25559401]
[1758297529009,31.2,237.91,237.88,32.94]
[1758297529203,2.82458733,237.9,237.88,32.94]
[1758297529423,15.45483678,237.9,237.89,0.66]
[1758297530233,31.2,237.88,237.87,13.59559401]
[1758297530436,31.2,237.88,237.87,46.53559401]
[1758297530812,0.7,237.92,237.87,46.53559401]
[1758297531018,34.72393977,237.92,237.88,0.66]
[1758297531225,2.82393977,237.91,237.89,32.28]
[1758297531745,12.63078121,237.9,237.89,32.28]
[1758297531932,15.45472098,237.9,237.89,32.28]
[1758297532131,12.63078121,237.9,237.89,32.28]
[1758297533516,12.63078121,237.9,237.89,32.94]
[1758297533720,12.63078121,237.9,237.89,32.28]
[1758297535529,12.63078121,237.9,237.89,32.95]
[1758297535732,12.63078121,237.9,237.89,32.28]
[1758297536633,12.63078121,237.9,237.89,32.95]
[1758297537730,12.63078121,237.9,237.89,46.54559401]
[1758297541150,12.63078121,237.9,237.86,34.76]
[1758297541453,31.2,237.88,237.87,45.87559401]
[1758297541627,31.2,237.88,237.87,46.59559401]
[1758297541950,0.72,237.92,237.87,46.59559401]
[1758297542252,2.82148427,237.93,237.88,0.72]
[1758297542557,3.54148427,237.93,237.89,32.28]
[1758297542728,2.82148427,237.93,237.89,32.28]
[1758297543053,31.2,237.9,237.89,32.28]
[1758297543545,0.72,237.93,237.89,32.28]
[1758297543739,12.63078121,237.9,237.89,32.28]
[1758297544141,15.45359593,237.9,237.89,32.28]
[1758297544443,12.63078121,237.9,237.89,32.28]
[1758297545147,15.45416804,237.9,237.89,32.28]
[1758297548335,16.17416804,237.9,237.89,32.28]
[1758297548534,15.45416804,237.9,237.89,32.28]
[1758297548735,15.45416804,237.9,237.81,0.1]
[1758297548736,19.57807052,237.9,237.81,0.1]
[1758297548946,31.2,237.86,237.82,12.38]
[1758297549276,3.54338683,237.85,237.82,12.38]
[1758297549465,34.74338683,237.84,237.82,12.38]
[1758297549646,2.82338683,237.83,237.82,12.38]
[1758297550536,12.63450483,237.83,237.82,12.38]
[1758297550752,15.45789166,237.83,237.82,12.38]
[1758297551451,16.17789166,237.83,237.81,0.1]
[1758297551654,2.82492533,237.82,237.81,0.1]
[1758297551958,2.82492533,237.82,237.81,31.37673946]
[1758297552163,31.2,237.8,237.79,0.2]
[1758297552358,37.55364357,237.8,237.79,32.48]
[1758297552652,34.74492533,237.8,237.79,0.2]
[1758297553140,38.27364357,237.8,237.79,21.34]
[1758297553335,34.74492533,237.8,237.79,21.34]
[1758297553749,34.74492533,237.8,237.79,0.2]
[1758297553943,34.74492533,237.8,237.79,32.48]
[1758297554949,35.88762528,237.8,237.79,0.2]
[1758297555265,35.88762528,237.8,237.79,32.48]
[1758297555652,48.52585592,237.8,237.79,32.48]
[1758297556943,48.52585592,237.8,237.79,0.2]
[1758297557264,48.52585592,237.8,237.79,28.92]
[1758297558659,47.38315597,237.8,237.79,28.92]
[1758297561646,46.66315597,237.8,237.79,28.92]
[1758297562238,46.66315597,237.8,237.79,29.64]
[1758297562439,46.66315597,237.8,237.79,28.92]
[1758297563446,15.46315597,237.8,237.79,29.64]
[1758297564379,2.82492533,237.8,237.79,29.64]
[1758297564577,2.82492533,237.81,237.79,29.64]
[1758297564756,2.82492533,237.81,237.79,28.92]
[1758297564955,2.82492533,237.81,237.8,0.72]
[1758297565169,2.82492533,237.81,237.79,28.92]
[1758297565373,2.82492533,237.81,237.8,0.65]
[1758297567873,2.82492533,237.81,237.79,28.92]
[1758297568677,2.82492533,237.81,237.79,0.2]
[1758297568880,2.82492533,237.81,237.8,32.28]
[1758297570082,2.82492533,237.81,237.8,32.93]
[1758297570680,2.82492533,237.81,237.8,32.28]
[1758297571983,7.06364357,237.81,237.8,32.28]
[1758297572275,6.35364357,237.81,237.8,32.28]
[1758297572654,6.35364357,237.81,237.79,0.2]
[1758297572859,2.82492533,237.81,237.8,32.28]
[1758297573067,6.0842252,237.81,237.8,32.28]
[1758297573671,6.7942252,237.81,237.8,32.28]
[1758297573869,19.43298828,237.81,237.8,32.28]
[1758297575853,18.72298828,237.81,237.8,32.28]
[1758297576892,19.43298828,237.81,237.8,21.62764366]
[1758297579775,18.72298828,237.81,237.8,21.62764366]
[1758297580384,19.43298828,237.81,237.8,21.62764366]
[1758297581576,18.72298828,237.81,237.8,21.62764366]
[1758297581876,19.43298828,237.81,237.8,21.62764366]
[1758297582491,18.72298828,237.81,237.8,21.62764366]
[1758297582860,19.43298828,237.81,237.8,21.62764366]
[1758297583272,19.43298828,237.81,237.79,0.2]
[1758297583481,2.82492533,237.8,237.79,0.2]
[1758297583791,24.18877223,237.8,237.79,0.2]
[1758297583992,24.89877223,237.8,237.79,0.2]
[1758297584478,37.5391329,237.8,237.79,0.2]
[1758297585187,36.8291329,237.8,237.79,0.2]
[1758297586492,36.8291329,237.8,237.79,0.85]
[1758297586887,40.34410549,237.8,237.79,0.85]
[1758297587963,36.8291329,237.8,237.79,0.85]
[1758297590193,36.8291329,237.8,237.79,33.13]
[1758297592474,36.8291329,237.8,237.79,22.47833032]
[1758297594569,36.8291329,237.8,237.79,23.12833032]
[1758297596975,36.8291329,237.8,237.79,22.47833032]
[1758297598484,36.8291329,237.8,237.78,0.2]
[1758297598776,2.82492533,237.79,237.78,0.2]
[1758297598991,2.82492533,237.79,237.78,32.46]
[1758297599508,2.82492533,237.79,237.78,33.18]
[1758297600413,15.47183998,237.79,237.78,33.18]
[1758297600580,15.73683996,237.79,237.78,0.2]
[1758297601279,16.40683996,237.79,237.78,0.2]
[1758297601698,13.57323063,237.79,237.78,0.2]
[1758297602107,33.57323063,237.79,237.78,0.2]
[1758297603082,51.2,237.77,237.76,0.2]
[1758297603599,20.0,237.75,237.74,0.2]
[1758297603984,51.2,237.73,237.72,0.2]
[1758297604407,72.98856811,237.73,237.72,0.2]
[1758297604611,54.67465996,237.73,237.72,0.2]
[1758297604788,53.96465996,237.73,237.72,0.2]
[1758297604983,22.76465996,237.73,237.72,0.2]
[1758297605911,22.76465996,237.73,237.72,0.9]
[1758297606109,22.76465996,237.73,237.72,0.2]
[1758297606110,23.47465996,237.73,237.72,0.2]
[1758297606312,22.76465996,237.73,237.72,0.2]
[1758297606620,23.47465996,237.73,237.72,0.2]
[1758297606983,43.47465996,237.73,237.72,0.2]
[1758297607184,22.76465996,237.73,237.72,0.2]
[1758297607396,22.76465996,237.73,237.72,0.9]
[1758297607890,22.76465996,237.73,237.72,0.2]
[1758297608289,23.47465996,237.73,237.72,0.2]
[1758297608514,22.76465996,237.73,237.72,0.2]
[1758297608683,23.47465996,237.73,237.72,0.2]
[1758297609504,22.76465996,237.73,237.72,0.2]
[1758297610110,23.47465996,237.73,237.72,0.2]
[1758297611619,26.30045599,237.73,237.67,0.2]
[1758297611798,3.53224722,237.68,237.67,0.2]
[1758297612004,2.82579603,237.68,237.67,0.2]
[1758297612516,28.09688583,237.68,237.67,0.9]
[1758297613106,28.09688583,237.68,237.67,0.2]
[1758297613503,28.09688583,237.68,237.67,0.9]
[1758297613905,28.09688583,237.68,237.67,33.18]
[1758297614411,28.09688583,237.68,237.67,32.48]
[1758297614719,28.09688583,237.68,237.67,33.18]
[1758297615603,15.45279588,237.68,237.67,46.77559401]
[1758297619918,15.45279588,237.68,237.67,48.25607217]
[1758297620647,12.62699985,237.68,237.67,48.25607217]
[1758297621045,15.45119512,237.68,237.67,46.77559401]
[1758297621232,15.45119512,237.68,237.67,14.49559401]
[1758297621617,15.45119512,237.68,237.67,46.79559401]
[1758297623414,2.82419527,237.68,237.67,46.79559401]
[1758297623614,2.82419527,237.69,237.68,13.59559401]
[1758297623826,2.82419527,237.69,237.68,14.29559401]
[1758297624424,2.82419527,237.69,237.68,46.59559401]
[1758297627643,2.82419527,237.69,237.68,46.59559401]
[1758297628837,2.82419527,237.69,237.68,48.07607217]
[1758297629028,31.2,237.72,237.68,48.07607217]
[1758297629226,2.82419527,237.71,237.7,13.59559401]
[1758297629546,2.82419527,237.71,237.7,14.26559401]
[1758297630842,34.02419527,237.71,237.7,14.26559401]
[1758297631725,2.82419527,237.71,237.7,14.26559401]
[1758297633257,2.82419527,237.72,237.7,14.26559401]
[1758297633442,2.82419527,237.72,237.71,46.54559401]
[1758297634440,2.82419527,237.72,237.71,14.26559401]
[1758297634645,2.82419527,237.72,237.71,46.54559401]
[1758297635245,2.82419527,237.72,237.71,14.26559401]
[1758297635429,2.82419527,237.72,237.71,45.87559401]
[1758297636028,2.82419527,237.72,237.71,46.54559401]
[1758297637530,2.82419527,237.75,237.72,13.59559401]
[1758297637728,34.02419527,237.74,237.73,46.54559401]
[1758297638031,34.02419527,237.74,237.73,45.87559401]
[1758297638624,3.50419527,237.74,237.73,32.28]
[1758297640723,34.70419527,237.74,237.73,32.28]
[1758297641143,2.82419527,237.74,237.73,32.28]
[1758297641455,34.70419527,237.74,237.73,32.28]
[1758297642351,34.02419527,237.74,237.73,32.28]
[1758297642930,34.70419527,237.74,237.73,32.28]
[1758297648767,2.82419527,237.74,237.73,46.54559401]
[1758297649646,2.82419527,237.75,237.73,48.02607217]
[1758297649871,2.82419527,237.75,237.74,0.67]
[1758297650035,2.82419527,237.76,237.75,13.59559401]
[1758297650438,2.82419527,237.79,237.75,13.59559401]
[1758297650741,34.73224722,237.8,237.67,0.62075146]
[1758297650742,3.50419527,237.78,237.7,0.67]
[1758297650937,31.2,237.75,237.71,45.87559401]
[1758297651144,2.82419527,237.74,237.71,46.54559401]
[1758297651356,2.82419527,237.74,237.73,13.59559401]
[1758297652056,2.82419527,237.74,237.73,0.67]
[1758297652455,31.2,237.75,237.67,0.2]
[1758297652652,34.02419527,237.74,237.67,0.2]
[1758297652853,34.02419527,237.73,237.69,13.59559401]
[1758297653158,2.82419527,237.72,237.69,13.59559401]
[1758297653351,2.82419527,237.71,237.69,13.59559401]
[1758297653663,2.82419527,237.72,237.69,13.59559401]
[1758297653861,2.82419527,237.71,237.69,13.59559401]
[1758297654169,2.82419527,237.72,237.69,13.59559401]
[1758297654396,2.82419527,237.71,237.69,13.59559401]
[1758297654582,3.50419527,237.72,237.69,13.59559401]
[1758297654867,2.82419527,237.71,237.69,13.59559401]
[1758297655066,34.02419527,237.72,237.7,0.67]
[1758297655270,3.53224722,237.75,237.69,13.59559401]
[1758297655271,2.82419527,237.71,237.69,13.59559401]
[1758297655567,2.82419527,237.75,237.71,13.59559401]
[1758297655736,2.82419527,237.74,237.71,14.25559401]
[1758297655933,2.82419527,237.73,237.71,14.25559401]
[1758297656144,31.2,237.75,237.71,13.59559401]
[1758297656365,3.54419527,237.74,237.71,13.59559401]
[1758297656562,2.82419527,237.73,237.71,13.59559401]
[1758297656861,2.82419527,237.72,237.71,14.25559401]
[1758297657081,2.82419527,237.74,237.71,14.25559401]
[1758297657257,2.82419527,237.73,237.71,14.25559401]
[1758297657463,2.82419527,237.72,237.71,14.25559401]
[1758297657647,2.82419527,237.74,237.71,14.25559401]
[1758297657851,2.82419527,237.73,237.71,14.25559401]
[1758297658063,2.82419527,237.72,237.71,14.25559401]
[1758297658256,2.82419527,237.74,237.71,14.25559401]
[1758297658461,2.82419527,237.73,237.71,14.25559401]
[1758297658660,2.82419527,237.72,237.71,14.25559401]
[1758297658867,2.82419527,237.75,237.71,14.25559401]
[1758297659161,2.82419527,237.74,237.71,14.25559401]
[1758297659368,2.82419527,237.73,237.71,14.25559401]
[1758297659546,2.82419527,237.72,237.71,13.59559401]
[1758297660161,2.82419527,237.72,237.71,14.25559401]
[1758297660571,2.82419527,237.75,237.71,14.25559401]
[1758297660869,34.02419527,237.74,237.73,13.59559401]
[1758297661068,34.02419527,237.74,237.73,45.87559401]
[1758297661653,3.51419527,237.74,237.67,0.86]
[1758297661965,3.53224722,237.72,237.68,32.28]
[1758297662163,3.51419527,237.71,237.68,32.28]
[1758297662366,2.82419527,237.7,237.68,32.28]
[1758297662558,2.82419527,237.69,237.68,45.87559401]
[1758297662956,2.82419527,237.69,237.67,0.2]
[1758297663263,2.82419527,237.68,237.67,0.2]
[1758297663454,2.82419527,237.68,237.67,46.07559401]
[1758297663973,2.82419527,237.68,237.67,0.2]
[1758297663974,3.51419527,237.68,237.67,0.2]
[1758297664273,7.04644249,237.68,237.67,0.2]
[1758297664444,7.04644249,237.68,237.67,32.48]
[1758297665763,34.02419527,237.68,237.67,32.48]
[1758297666854,2.82419527,237.68,237.67,46.73559401]
[1758297667056,2.82419527,237.72,237.68,13.59559401]
[1758297667274,3.51419527,237.71,237.69,15.72]
[1758297667470,34.02419527,237.7,237.69,15.72]
[1758297667989,7.04644249,237.7,237.69,32.32]
[1758297668160,34.71419527,237.7,237.69,32.32]
[1758297668764,34.02419527,237.7,237.69,32.32]
[1758297669073,3.51419527,237.7,237.69,32.32]
[1758297669281,7.05433664,237.7,237.69,32.32]
[1758297669679,34.71419527,237.7,237.69,32.32]
[1758297670367,31.2,237.69,237.67,0.2]
[1758297670580,6.36404105,237.68,237.67,0.2]
[1758297670883,6.36404105,237.68,237.67,32.52]
[1758297671067,7.05404105,237.68,237.67,32.52]
[1758297671481,7.05404105,237.68,237.67,0.2]
[1758297671686,34.71419527,237.68,237.67,11.46]
[1758297671894,47.35615394,237.68,237.67,0.2]
[1758297672191,47.35615394,237.68,237.67,32.54]
[1758297673695,47.35615394,237.68,237.65,0.2]
[1758297673872,44.53195867,237.68,237.67,32.34]
[1758297674073,0.69,237.68,237.67,32.34]
[1758297674274,13.33622194,237.68,237.67,32.34]
[1758297674974,13.33622194,237.68,237.65,0.2]
[1758297675185,13.33622194,237.68,237.66,32.34]
[1758297675504,0.69,237.67,237.66,32.34]
[1758297675668,13.33622194,237.67,237.66,32.34]
[1758297676491,13.33622194,237.67,237.65,0.2]
[1758297676687,16.67938672,237.67,237.65,0.2]
[1758297676992,35.23316478,237.67,237.65,0.2]
[1758297677194,1.6865184,237.66,237.65,0.2]
[1758297677377,32.8865184,237.66,237.65,0.2]
[1758297677576,33.5765184,237.66,237.65,0.2]
[1758297678395,33.5765184,237.66,237.61,0.1]
[1758297678396,31.2,237.62,237.61,0.1]
[1758297678771,31.89,237.62,237.61,0.1]
[1758297679285,42.09,237.62,237.61,0.1]
[1758297683282,42.09,237.62,237.55,32.54]
[1758297683283,31.2,237.58,237.55,0.2]
[1758297683788,31.89,237.6,237.55,0.2]
[1758297684102,0.69,237.57,237.55,0.2]
[1758297684586,1.68687401,237.57,237.56,0.86]
[1758297685099,1.68687401,237.57,237.56,0.2]
[1758297685302,31.2,237.62,237.56,0.2]
[1758297685482,0.71,237.61,237.56,0.2]
[1758297685991,1.68680288,237.6,237.56,0.2]
[1758297686191,0.71,237.59,237.56,0.2]
[1758297686580,32.88680288,237.6,237.56,0.2]
[1758297686789,0.71,237.58,237.56,0.2]
[1758297687193,0.71,237.57,237.56,0.2]
[1758297687673,0.71,237.59,237.56,0.2]
[1758297688094,43.85208865,237.6,237.56,0.2]
[1758297688291,0.71,237.59,237.56,0.2]
[1758297688878,43.85208865,237.6,237.57,0.69]
[1758297689078,43.85208865,237.6,237.56,0.2]
[1758297689283,0.71,237.59,237.56,0.2]
[1758297689489,43.85208865,237.6,237.56,0.2]
[1758297689490,31.2,237.6,237.56,0.2]
[1758297689692,34.72989286,237.57,237.56,0.2]
[1758297690108,35.43989286,237.57,237.56,0.2]
[1758297690280,31.91,237.57,237.56,0.2]
[1758297690684,49.7140171,237.57,237.56,0.2]
[1758297691994,53.22540574,237.57,237.56,0.2]
[1758297693003,51.40131805,237.57,237.56,0.2]
[1758297693303,54.91270669,237.57,237.56,0.2]
[1758297694624,67.71735373,237.57,237.56,0.2]
[1758297695509,67.00735373,237.57,237.56,0.2]
[1758297695710,63.49596509,237.57,237.56,0.2]
[1758297695895,63.49596509,237.57,237.56,0.89]
[1758297696097,32.29596509,237.57,237.56,0.89]
[1758297696292,30.60866414,237.57,237.56,0.89]
[1758297697290,30.60866414,237.57,237.56,0.2]
[1758297697804,31.31866414,237.57,237.56,0.2]
[1758297698001,30.60866414,237.57,237.56,0.2]
[1758297700927,17.8040171,237.57,237.56,0.2]
[1758297701213,17.8040171,237.57,237.56,0.89]
[1758297701602,17.8040171,237.57,237.56,0.2]
[1758297701798,18.5140171,237.57,237.56,0.2]
[1758297701994,31.08252322,237.57,237.56,0.2]
[1758297703313,30.37252322,237.57,237.56,0.2]
[1758297704996,34.59391186,237.57,237.56,0.2]
[1758297705413,36.28099931,237.57,237.56,0.2]
[1758297706716,32.76961067,237.57,237.56,0.2]
[1758297715500,3.53075633,237.64,237.57,13.59559401]
[1758297715717,3.53075633,237.68,237.57,13.59559401]
[1758297716023,1.68609185,237.71,237.63,13.59559401]
[1758297716200,1.68609185,237.71,237.65,13.59559401]
[1758297716702,31.3,237.79,237.65,13.59559401]
[1758297716904,34.83075633,237.79,237.58,34.12]
[1758297717123,3.63075633,237.79,237.62,13.59559401]
[1758297717321,31.2,237.77,237.62,13.59559401]
[1758297717521,4.34075633,237.79,237.64,13.59559401]
[1758297717522,31.2,237.76,237.64,13.59559401]
[1758297717722,34.73075633,237.76,237.65,32.82]
[1758297717924,34.73075633,237.76,237.64,13.59559401]
[1758297718218,4.24075633,237.75,237.65,32.82]
[1758297718423,4.24075633,237.75,237.64,32.84]
[1758297719224,31.2,237.74,237.64,32.84]
[1758297719714,0.66,237.73,237.59,13.59559401]
[1758297720027,0.66,237.72,237.61,13.59559401]
[1758297720526,4.19075633,237.72,237.61,13.59559401]
[1758297721023,0.66,237.71,237.58,34.12]
[1758297721230,4.19075633,237.71,237.59,46.41559401]
[1758297721418,3.53075633,237.71,237.59,46.41559401]
[1758297721729,16.17431338,237.77,237.61,13.59559401]
[1758297722027,3.53075633,237.77,237.61,13.59559401]
[1758297722404,3.53075633,237.78,237.62,51.62083999]
[1758297722603,12.74249142,237.79,237.72,13.59559401]
[1758297722832,0.1,237.79,237.74,13.59559401]
[1758297723202,0.1,237.79,237.74,0.42062757]
[1758297723400,0.1,237.79,237.76,13.59559401]
[1758297725033,0.1,237.79,237.78,15.07554138]
[1758297725330,0.1,237.79,237.78,48.35609819]
[1758297728527,0.1,237.89,237.79,13.59559401]
[1758297728707,0.1,237.89,237.84,15.07554138]
[1758297728902,0.1,237.89,237.84,47.91554138]
[1758297730031,0.1,237.89,237.84,46.43559401]
[1758297730908,0.1,237.89,237.84,13.59559401]
[1758297731125,0.76,237.89,237.84,46.43559401]
[1758297731911,0.76,237.89,237.84,13.59559401]
[1758297732420,0.76,237.89,237.84,46.43559401]
[1758297733206,0.1,237.89,237.84,46.43559401]
[1758297739111,0.1,237.89,237.84,47.91554138]
[1758297739313,0.1,237.89,237.84,46.39559401]
[1758297739523,0.1,237.89,237.84,47.87554138]
[1758297739723,0.1,237.89,237.84,34.27994737]
[1758297740326,0.76,237.89,237.84,46.39559401]
[1758297740527,0.1,237.89,237.84,46.39559401]
[1758297740720,0.1,237.89,237.84,13.59559401]
[1758297740920,0.1,237.89,237.84,46.39559401]
[1758297741634,0.1,237.89,237.84,47.87554138]
[1758297743338,0.1,237.89,237.84,34.27994737]
[1758297743643,0.1,237.89,237.84,47.87554138]
[1758297743828,0.1,237.89,237.84,46.39559401]
[1758297744147,0.1,237.89,237.84,128.67554138]
[1758297745230,0.1,237.89,237.84,127.19559401]
[1758297745442,0.1,237.89,237.84,128.67554138]
[1758297745637,0.1,237.89,237.84,127.19559401]
[1758297745841,0.1,237.89,237.84,47.87554138]
[1758297746038,0.1,237.89,237.84,128.67554138]
[1758297746927,0.1,237.89,237.84,132.88004861]
[1758297750226,0.1,237.89,237.84,131.40010124]
[1758297750429,0.1,237.89,237.84,132.88004861]
[1758297750720,0.1,237.89,237.84,95.87554138]
[1758297751030,0.1,237.89,237.84,94.39559401]
[1758297751343,0.67,237.88,237.84,94.39559401]
[1758297751540,0.67,237.88,237.84,128.59554138]
[1758297752138,0.1,237.89,237.84,95.87554138]
[1758297752323,0.87,237.85,237.84,128.61554138]
[1758297752527,0.2,237.85,237.84,128.61554138]
[1758297752737,0.2,237.85,237.84,94.39559401]
[1758297753044,0.2,237.85,237.84,128.59554138]
[1758297754432,0.2,237.85,237.84,127.11559401]
[1758297754649,0.2,237.85,237.84,128.59554138]
[1758297758956,0.87,237.85,237.84,127.11559401]
[1758297759158,0.2,237.85,237.84,127.11559401]
[1758297759527,0.2,237.85,237.84,127.09559401]
[1758297759746,0.2,237.85,237.84,128.57554138]
[1758297763434,0.2,237.85,237.84,95.87554138]
[1758297763959,0.2,237.85,237.84,128.55554138]
[1758297766170,0.2,237.85,237.84,128.53554138]
[1758297767572,0.2,237.85,237.84,47.71554138]
[1758297768372,0.2,237.85,237.84,46.23559401]
[1758297768567,0.2,237.85,237.84,47.71390317]
[1758297769070,0.2,237.85,237.84,48.13435389]
[1758297769246,0.1,237.89,237.84,48.13435389]
[1758297769247,0.1,237.89,237.85,13.59559401]
[1758297769444,0.1,237.89,237.88,15.07390317]
[1758297769751,0.1,237.89,237.88,48.13428319]
[1758297771477,0.1,237.89,237.88,52.33808342]
[1758297772665,0.27,237.94,237.89,13.59559401]
[1758297772867,0.27,237.94,237.91,13.59559401]
[1758297773070,0.27,237.94,237.88,5.68210939]
[1758297773071,0.27,237.94,237.93,13.59559401]
[1758297775553,0.2,237.95,237.93,13.59559401]
[1758297775751,0.2,237.95,237.94,48.11417718]
[1758297776456,0.2,237.95,237.94,46.63586802]
[1758297776770,0.2,237.95,237.94,48.11417718]
[1758297777474,0.89,237.95,237.94,15.49417718]
[1758297777665,0.89,237.95,237.94,14.01586802]
[1758297777852,0.89,237.95,237.94,46.63586802]
[1758297778475,0.89,237.95,237.94,14.01586802]
[1758297778677,0.89,237.95,237.94,48.11417718]
[1758297778886,0.89,237.95,237.94,48.09417718]
[1758297779662,0.89,237.95,237.94,15.49417718]
[1758297779862,0.89,237.95,237.94,48.09417718]
[1758297780061,0.89,237.95,237.94,46.61586802]
[1758297780687,0.2,237.95,237.94,48.09417718]
[1758297780987,0.89,237.95,237.94,14.01586802]